[Event "*** MasterClass Titled Tuesday Blitz"]
[Site "Chess.com"]
[Date "2017.12.05"]
[Round "2"]
[White "moro182"]
[Black "EndgameGrinder"]
[Result "1-0"]
[WhiteElo "2623"]
[BlackElo "2426"]
[TimeControl "180+2"]
[EndTime "14:36:31 PST"]
[Termination "moro182 won by resignation"]

1. d4 {[%clk 0:03:01.9]} 1... Nf6 {[%clk 0:02:56.4]} 2. c4 {[%clk 0:03:02]} 2...
e6 {[%clk 0:02:57.7]} 3. Nf3 {[%clk 0:03:03.3]} 3... Bb4+ {[%clk 0:02:58.9]} 4.
Bd2 {[%clk 0:03:04.1]} 4... a5 {[%clk 0:03:00.4]} 5. g3 {[%clk 0:03:05]} 5... d6
{[%clk 0:03:01.5]} 6. Bg2 {[%clk 0:03:06.4]} 6... Nbd7 {[%clk 0:03:03.1]} 7. O-O
{[%clk 0:03:07.6]} 7... e5 {[%clk 0:03:04.7]} 8. Bxb4 {[%clk 0:03:08.8]} 8...
axb4 {[%clk 0:03:05.2]} 9. Nbd2 {[%clk 0:03:03.6]} 9... O-O {[%clk 0:03:02.9]}
10. e3 {[%clk 0:03:03.9]} 10... c6 {[%clk 0:02:53.7]} 11. Qb3 {[%clk 0:02:57.6]}
11... c5 {[%clk 0:02:31.1]} 12. Rfd1 {[%clk 0:02:52.3]} 12... Qc7 {[%clk
0:02:28.9]} 13. a3 {[%clk 0:02:45.9]} 13... bxa3 {[%clk 0:02:27.4]} 14. bxa3
{[%clk 0:02:47.8]} 14... Ra7 {[%clk 0:01:58.3]} 15. Nb1 {[%clk 0:02:43]} 15...
cxd4 {[%clk 0:01:52.3]} 16. exd4 {[%clk 0:02:42.6]} 16... b6 {[%clk 0:01:42.2]}
17. Nc3 {[%clk 0:02:41.9]} 17... Ba6 {[%clk 0:01:43.8]} 18. Nb5 {[%clk
0:02:37.7]} 18... Bxb5 {[%clk 0:01:45]} 19. cxb5 {[%clk 0:02:39.6]} 19... exd4
{[%clk 0:01:39.1]} 20. Nxd4 {[%clk 0:02:38.9]} 20... Nc5 {[%clk 0:01:39.7]} 21.
Qf3 {[%clk 0:02:34.3]} 21... d5 {[%clk 0:01:35.8]} 22. Nc6 {[%clk 0:02:30]}
22... Ra4 {[%clk 0:01:30.2]} 23. Nb4 {[%clk 0:02:19.2]} 23... Qd7 {[%clk
0:00:59.1]} 24. Rab1 {[%clk 0:02:17.7]} 24... d4 {[%clk 0:00:42.8]} 25. Rb2
{[%clk 0:01:55.5]} 25... h6 {[%clk 0:00:41.1]} 26. Rbd2 {[%clk 0:01:55.1]} 26...
Qxb5 {[%clk 0:00:32]} 27. Rxd4 {[%clk 0:01:55.3]} 27... Re8 {[%clk 0:00:21.6]}
28. Qf5 {[%clk 0:01:40.5]} 28... Qa5 {[%clk 0:00:12.1]} 29. Bc6 {[%clk
0:01:35.2]} 29... Rf8 {[%clk 0:00:13.5]} 30. Rd8 {[%clk 0:01:32.3]} 30... Rxb4
{[%clk 0:00:07.2]} 31. axb4 {[%clk 0:01:29.5]} 31... Qxb4 {[%clk 0:00:09.1]} 32.
Rxf8+ {[%clk 0:01:22.3]} 32... Kxf8 {[%clk 0:00:11]} 33. Qc8+ {[%clk 0:01:23.8]}
33... Ke7 {[%clk 0:00:11.2]} 34. Qc7+ {[%clk 0:00:56]} 34... Ke6 {[%clk
0:00:09.4]} 35. h3 {[%clk 0:00:42.3]} 35... h5 {[%clk 0:00:09.9]} 36. Rd6+
{[%clk 0:00:39.7]} 36... Kf5 {[%clk 0:00:11]} 37. Qxf7 {[%clk 0:00:41.2]} 37...
Qb1+ {[%clk 0:00:06.3]} 38. Kg2 {[%clk 0:00:41]} 38... Qe1 {[%clk 0:00:07.4]}
39. Rd5+ {[%clk 0:00:40.2]} 39... Ke4 {[%clk 0:00:05.4]} 1-0

[Event "*** MasterClass Titled Tuesday Blitz"]
[Site "Chess.com"]
[Date "2017.12.05"]
[Round "2"]
[White "Indianlad"]
[Black "LastHeroJr"]
[Result "1-0"]
[WhiteElo "2594"]
[BlackElo "2411"]
[TimeControl "180+2"]
[EndTime "14:36:31 PST"]
[Termination "Indianlad won on time"]

1. e4 {[%clk 0:03:01.9]} 1... e5 {[%clk 0:02:59.7]} 2. Nf3 {[%clk 0:03:02.5]}
2... Nc6 {[%clk 0:03:00.7]} 3. Bb5 {[%clk 0:03:04.1]} 3... a6 {[%clk 0:03:01.8]}
4. Ba4 {[%clk 0:03:05.2]} 4... Nf6 {[%clk 0:03:03.1]} 5. Nc3 {[%clk 0:03:06.5]}
5... d6 {[%clk 0:02:40.6]} 6. d4 {[%clk 0:03:05.9]} 6... Bd7 {[%clk 0:02:34.7]}
7. Bxc6 {[%clk 0:02:59.9]} 7... Bxc6 {[%clk 0:02:34]} 8. O-O {[%clk 0:02:59.7]}
8... Be7 {[%clk 0:02:23.7]} 9. dxe5 {[%clk 0:02:59.2]} 9... dxe5 {[%clk
0:02:24.5]} 10. Nxe5 {[%clk 0:02:57.2]} 10... Qxd1 {[%clk 0:02:19.7]} 11. Rxd1
{[%clk 0:02:57.6]} 11... Bxe4 {[%clk 0:02:20.3]} 12. Nxe4 {[%clk 0:02:56.1]}
12... Nxe4 {[%clk 0:02:21.1]} 13. Re1 {[%clk 0:02:54.6]} 13... Nc5 {[%clk
0:01:58.8]} 14. Be3 {[%clk 0:02:43.9]} 14... Ne6 {[%clk 0:01:29.6]} 15. f4
{[%clk 0:02:43.8]} 15... O-O {[%clk 0:01:22.3]} 16. f5 {[%clk 0:02:40.8]} 16...
Nc5 {[%clk 0:01:03.1]} 17. Kf1 {[%clk 0:02:39.8]} 17... Na4 {[%clk 0:00:56.7]}
18. b3 {[%clk 0:02:36.3]} 18... Nc3 {[%clk 0:00:55.5]} 19. f6 {[%clk 0:02:06.9]}
19... gxf6 {[%clk 0:00:47.4]} 20. Ng4 {[%clk 0:02:05.8]} 20... Rad8 {[%clk
0:00:41.2]} 21. Bh6 {[%clk 0:01:54.1]} 21... Rfe8 {[%clk 0:00:42]} 22. Re3
{[%clk 0:01:52.6]} 22... Nd5 {[%clk 0:00:40.8]} 23. Rg3 {[%clk 0:01:44.7]} 23...
Kh8 {[%clk 0:00:40.7]} 24. c4 {[%clk 0:01:32.3]} 24... Nb4 {[%clk 0:00:37.4]}
25. Re1 {[%clk 0:01:33.4]} 25... Nc6 {[%clk 0:00:31.2]} 26. Rge3 {[%clk
0:01:20.1]} 26... Rg8 {[%clk 0:00:22]} 27. h3 {[%clk 0:01:21.5]} 27... Bb4
{[%clk 0:00:21.4]} 28. Nxf6 {[%clk 0:00:47.3]} 28... Bxe1 {[%clk 0:00:17]} 29.
Nxg8 {[%clk 0:00:48.8]} 29... Bd2 {[%clk 0:00:17.7]} 30. Rf3 {[%clk 0:00:44.1]}
30... Bxh6 {[%clk 0:00:14.3]} 31. Nxh6 {[%clk 0:00:44.1]} 31... Rd1+ {[%clk
0:00:12.9]} 32. Ke2 {[%clk 0:00:41.1]} 32... Ra1 {[%clk 0:00:13.7]} 33. Rg3
{[%clk 0:00:42]} 33... Rxa2+ {[%clk 0:00:13.5]} 34. Kd1 {[%clk 0:00:38.9]} 34...
Ra1+ {[%clk 0:00:07]} 35. Kd2 {[%clk 0:00:40.1]} 35... Ra2+ {[%clk 0:00:07.2]}
36. Kc1 {[%clk 0:00:41.6]} 1-0

[Event "*** MasterClass Titled Tuesday Blitz"]
[Site "Chess.com"]
[Date "2017.12.05"]
[Round "2"]
[White "calemcc"]
[Black "northridgehawk"]
[Result "0-1"]
[WhiteElo "2283"]
[BlackElo "1963"]
[TimeControl "180+2"]
[EndTime "14:36:37 PST"]
[Termination "northridgehawk won by checkmate"]

1. d4 {[%clk 0:02:55.1]} 1... Nf6 {[%clk 0:02:52.7]} 2. c4 {[%clk 0:02:56.1]}
2... g6 {[%clk 0:02:53.2]} 3. f3 {[%clk 0:02:56.9]} 3... d5 {[%clk 0:02:53]} 4.
cxd5 {[%clk 0:02:58.8]} 4... Nxd5 {[%clk 0:02:53.9]} 5. e4 {[%clk 0:03:00.4]}
5... Nb6 {[%clk 0:02:54.8]} 6. Nc3 {[%clk 0:03:02]} 6... Bg7 {[%clk 0:02:56.4]}
7. Be3 {[%clk 0:03:03.5]} 7... O-O {[%clk 0:02:56.9]} 8. Qd2 {[%clk 0:03:04.7]}
8... Nc6 {[%clk 0:02:58.3]} 9. O-O-O {[%clk 0:03:06.3]} 9... f5 {[%clk
0:02:56.6]} 10. h4 {[%clk 0:03:05.5]} 10... fxe4 {[%clk 0:02:54.9]} 11. fxe4
{[%clk 0:03:04.8]} 11... e5 {[%clk 0:02:54.3]} 12. d5 {[%clk 0:03:03.4]} 12...
Nd4 {[%clk 0:02:55]} 13. Be2 {[%clk 0:02:46.5]} 13... a5 {[%clk 0:02:54.9]} 14.
h5 {[%clk 0:02:45.4]} 14... a4 {[%clk 0:02:53.2]} 15. hxg6 {[%clk 0:02:44.6]}
15... hxg6 {[%clk 0:02:51.7]} 16. Bh6 {[%clk 0:02:45.5]} 16... Qf6 {[%clk
0:02:51.2]} 17. Bxg7 {[%clk 0:02:45.5]} 17... Qxg7 {[%clk 0:02:53.1]} 18. Nf3
{[%clk 0:02:45.8]} 18... a3 {[%clk 0:02:52.5]} 19. b3 {[%clk 0:02:46.1]} 19...
c5 {[%clk 0:02:49.4]} 20. dxc6 {[%clk 0:02:46.1]} 20... Nxc6 {[%clk 0:02:50.3]}
21. Nd5 {[%clk 0:02:41]} 21... Nd7 {[%clk 0:02:32.6]} 22. Bc4 {[%clk 0:02:38.7]}
22... Rf7 {[%clk 0:02:16.4]} 23. Nb6 {[%clk 0:02:13.4]} 23... Nxb6 {[%clk
0:02:08]} 24. Bxf7+ {[%clk 0:01:56.1]} 24... Qxf7 {[%clk 0:01:56.1]} 25. Qd6
{[%clk 0:01:32.6]} 25... Bg4 {[%clk 0:01:44.3]} 26. Kb1 {[%clk 0:01:26.5]} 26...
Bxf3 {[%clk 0:01:42.3]} 27. gxf3 {[%clk 0:01:28.4]} 27... Rd8 {[%clk 0:01:42.9]}
28. Qc5 {[%clk 0:01:17.3]} 28... Rxd1+ {[%clk 0:01:35.3]} 29. Rxd1 {[%clk
0:01:19.2]} 29... Qxf3 {[%clk 0:01:34.1]} 30. Kc1 {[%clk 0:01:07.4]} 30... Qf4+
{[%clk 0:01:30.8]} 31. Rd2 {[%clk 0:01:04.7]} 31... Qf1+ {[%clk 0:01:30.4]} 32.
Rd1 {[%clk 0:00:58.3]} 32... Qe2 {[%clk 0:01:30.9]} 33. Rd2 {[%clk 0:00:54.3]}
33... Qxe4 {[%clk 0:01:25.4]} 34. Qxb6 {[%clk 0:00:50.5]} 34... Qe1+ {[%clk
0:01:25.5]} 35. Kc2 {[%clk 0:00:45.9]} 35... Nd4+ {[%clk 0:01:19.5]} 36. Rxd4
{[%clk 0:00:46.9]} 36... exd4 {[%clk 0:01:21.3]} 37. Qd8+ {[%clk 0:00:48]} 37...
Kf7 {[%clk 0:01:19.5]} 38. Qd7+ {[%clk 0:00:48.8]} 38... Kg8 {[%clk 0:01:11.2]}
39. Qc8+ {[%clk 0:00:47.9]} 39... Kh7 {[%clk 0:01:09.6]} 40. Qxb7+ {[%clk
0:00:49.2]} 40... Kh6 {[%clk 0:01:10.7]} 41. Qd7 {[%clk 0:00:41.4]} 41... Qc3+
{[%clk 0:01:02.9]} 42. Kd1 {[%clk 0:00:42.8]} 42... Qa1+ {[%clk 0:01:01.4]} 43.
Ke2 {[%clk 0:00:43.9]} 43... Qxa2+ {[%clk 0:01:02.6]} 44. Ke1 {[%clk 0:00:44.6]}
44... Qxb3 {[%clk 0:01:01.8]} 45. Qxd4 {[%clk 0:00:43.3]} 45... Qb1+ {[%clk
0:01:01.9]} 46. Kd2 {[%clk 0:00:44]} 46... Qb2+ {[%clk 0:01:03.1]} 47. Qxb2
{[%clk 0:00:45.6]} 47... axb2 {[%clk 0:01:05]} 48. Kc2 {[%clk 0:00:47.5]} 48...
g5 {[%clk 0:01:05.8]} 49. Kxb2 {[%clk 0:00:49.4]} 49... Kg6 {[%clk 0:01:07.1]}
50. Kc2 {[%clk 0:00:51.3]} 50... Kf5 {[%clk 0:01:09]} 51. Kd2 {[%clk 0:00:52.9]}
51... Kf4 {[%clk 0:01:09.8]} 52. Ke2 {[%clk 0:00:54.8]} 52... Kg3 {[%clk
0:01:09.9]} 53. Kf1 {[%clk 0:00:56.7]} 53... Kh2 {[%clk 0:01:09]} 54. Kf2 {[%clk
0:00:58.6]} 54... g4 {[%clk 0:01:10.3]} 55. Kf1 {[%clk 0:00:58.7]} 55... g3
{[%clk 0:01:12.2]} 56. Ke2 {[%clk 0:00:59.9]} 56... g2 {[%clk 0:01:14.1]} 57.
Ke3 {[%clk 0:01:01.7]} 57... g1=Q+ {[%clk 0:01:15.8]} 58. Kf4 {[%clk 0:01:02.1]}
58... Qc5 {[%clk 0:01:16.4]} 59. Ke4 {[%clk 0:01:02.9]} 59... Kg3 {[%clk
0:01:16.3]} 60. Kd3 {[%clk 0:01:04.2]} 60... Qb4 {[%clk 0:01:16.1]} 61. Kc2
{[%clk 0:01:05.2]} 61... Qa3 {[%clk 0:01:16.7]} 62. Kb1 {[%clk 0:01:05.8]} 62...
Kf2 {[%clk 0:01:15.2]} 63. Kc2 {[%clk 0:01:07.7]} 63... Ke2 {[%clk 0:01:14.4]}
64. Kb1 {[%clk 0:01:08.3]} 64... Qc3 {[%clk 0:01:14.9]} 65. Ka2 {[%clk
0:01:09.1]} 65... Qb4 {[%clk 0:01:16.1]} 66. Ka1 {[%clk 0:01:09.8]} 66... Kd2
{[%clk 0:01:18]} 67. Ka2 {[%clk 0:01:11.7]} 67... Kc2 {[%clk 0:01:19.1]} 68. Ka1
{[%clk 0:01:11.9]} 68... Qa5# {[%clk 0:01:20.7]} 0-1

[Event "*** MasterClass Titled Tuesday Blitz"]
[Site "Chess.com"]
[Date "2017.12.05"]
[Round "2"]
[White "juniortay"]
[Black "Diwi89"]
[Result "0-1"]
[WhiteElo "2307"]
[BlackElo "2731"]
[TimeControl "180+2"]
[EndTime "14:36:40 PST"]
[Termination "Diwi89 won on time"]

1. e4 {[%clk 0:03:01.9]} 1... c5 {[%clk 0:03:00.2]} 2. Nc3 {[%clk 0:03:01.9]}
2... Nc6 {[%clk 0:03:00.3]} 3. f4 {[%clk 0:03:03.1]} 3... g6 {[%clk 0:03:00.1]}
4. Nf3 {[%clk 0:03:04.6]} 4... Bg7 {[%clk 0:03:00.9]} 5. Bb5 {[%clk 0:03:05.3]}
5... Nd4 {[%clk 0:03:02.3]} 6. O-O {[%clk 0:03:06.1]} 6... Nxb5 {[%clk
0:03:02.9]} 7. Nxb5 {[%clk 0:03:07.9]} 7... d6 {[%clk 0:03:00.5]} 8. d3 {[%clk
0:03:06.9]} 8... Nf6 {[%clk 0:03:01.2]} 9. Qe1 {[%clk 0:03:05.9]} 9... O-O
{[%clk 0:03:00.4]} 10. Qh4 {[%clk 0:03:05.8]} 10... c4 {[%clk 0:02:58]} 11. Nc3
{[%clk 0:03:01.6]} 11... cxd3 {[%clk 0:02:59.4]} 12. cxd3 {[%clk 0:03:02.3]}
12... b5 {[%clk 0:03:00.7]} 13. a3 {[%clk 0:02:51.7]} 13... a5 {[%clk 0:02:55]}
14. f5 {[%clk 0:02:48.3]} 14... b4 {[%clk 0:02:47]} 15. axb4 {[%clk 0:02:47.6]}
15... Qb6+ {[%clk 0:02:48.3]} 16. Kh1 {[%clk 0:02:48.2]} 16... Qxb4 {[%clk
0:02:49.9]} 17. Bh6 {[%clk 0:02:18.8]} 17... Ba6 {[%clk 0:02:49.6]} 18. Ng5
{[%clk 0:02:16.8]} 18... Qxb2 {[%clk 0:02:43.6]} 19. Bxg7 {[%clk 0:02:08.2]}
19... Kxg7 {[%clk 0:02:43.9]} 20. Nd5 {[%clk 0:02:09.1]} 20... h6 {[%clk
0:02:40.1]} 21. Nxe7 {[%clk 0:01:38.8]} 21... hxg5 {[%clk 0:02:39.8]} 22. Qxg5
{[%clk 0:01:40.4]} 22... Qe5 {[%clk 0:02:32.8]} 23. Nc6 {[%clk 0:01:34.6]} 23...
Qe8 {[%clk 0:02:29.6]} 24. Nd4 {[%clk 0:01:25.5]} 24... Bc8 {[%clk 0:01:51.3]}
25. Rac1 {[%clk 0:01:21.5]} 25... Bd7 {[%clk 0:01:47.9]} 26. Rc7 {[%clk
0:01:14]} 26... Qe5 {[%clk 0:01:30.1]} 27. Nf3 {[%clk 0:01:07.4]} 27... Qe8
{[%clk 0:01:21.9]} 28. Nd4 {[%clk 0:00:58.6]} 28... Qe5 {[%clk 0:01:00]} 29. Nf3
{[%clk 0:00:58.1]} 29... Qb5 {[%clk 0:00:53.6]} 30. Nh4 {[%clk 0:00:40.4]} 30...
Qxd3 {[%clk 0:00:47.4]} 31. Rfc1 {[%clk 0:00:36]} 31... Qxe4 {[%clk 0:00:45.1]}
32. h3 {[%clk 0:00:30.2]} 32... Bxf5 {[%clk 0:00:39.4]} 33. R7c4 {[%clk
0:00:20.4]} 33... Qe6 {[%clk 0:00:40.4]} 34. Nf3 {[%clk 0:00:19.4]} 34... Ne4
{[%clk 0:00:41.1]} 35. Qf4 {[%clk 0:00:17.8]} 35... d5 {[%clk 0:00:42]} 36. Rc6
{[%clk 0:00:17.8]} 36... Qe7 {[%clk 0:00:42]} 37. Nd4 {[%clk 0:00:18.2]} 37...
Bd7 {[%clk 0:00:43.2]} 38. Rc7 {[%clk 0:00:18]} 38... Rac8 {[%clk 0:00:43.6]}
39. h4 {[%clk 0:00:06.4]} 39... Rxc7 {[%clk 0:00:43.4]} 40. Rxc7 {[%clk
0:00:08.3]} 40... Rc8 {[%clk 0:00:44.3]} 41. Ra7 {[%clk 0:00:07.9]} 41... Qf6
{[%clk 0:00:40.1]} 0-1

[Event "*** MasterClass Titled Tuesday Blitz"]
[Site "Chess.com"]
[Date "2017.12.05"]
[Round "2"]
[White "Sola00"]
[Black "toad"]
[Result "0-1"]
[WhiteElo "1525"]
[BlackElo "2177"]
[TimeControl "180+2"]
[EndTime "14:36:42 PST"]
[Termination "toad won by resignation"]

1. e4 {[%clk 0:03:01.9]} 1... c5 {[%clk 0:02:56.8]} 2. Nf3 {[%clk 0:03:01]} 2...
d6 {[%clk 0:02:57.3]} 3. d4 {[%clk 0:03:02.1]} 3... cxd4 {[%clk 0:02:58]} 4.
Qxd4 {[%clk 0:03:03.6]} 4... Nc6 {[%clk 0:02:58.3]} 5. Bb5 {[%clk 0:03:05.2]}
5... Bd7 {[%clk 0:02:59.4]} 6. Bxc6 {[%clk 0:03:06.6]} 6... Bxc6 {[%clk
0:03:01.1]} 7. Nc3 {[%clk 0:03:07.3]} 7... Nf6 {[%clk 0:02:53.8]} 8. Bg5 {[%clk
0:03:07.2]} 8... e6 {[%clk 0:02:54.7]} 9. O-O-O {[%clk 0:03:05.9]} 9... Be7
{[%clk 0:02:55.2]} 10. Rhe1 {[%clk 0:03:05.3]} 10... O-O {[%clk 0:02:54]} 11.
Kb1 {[%clk 0:03:06]} 11... a6 {[%clk 0:02:54]} 12. Bxf6 {[%clk 0:02:39.8]} 12...
gxf6 {[%clk 0:02:53.3]} 13. Qe3 {[%clk 0:02:28.9]} 13... Qa5 {[%clk 0:02:44.9]}
14. h4 {[%clk 0:02:13.5]} 14... Kh8 {[%clk 0:02:40.2]} 15. g3 {[%clk 0:02:09.8]}
15... b5 {[%clk 0:02:33.6]} 16. Nd4 {[%clk 0:02:08.6]} 16... Bb7 {[%clk
0:02:28.6]} 17. f4 {[%clk 0:01:58.8]} 17... b4 {[%clk 0:02:27.5]} 18. Nce2
{[%clk 0:01:57]} 18... Qb6 {[%clk 0:02:17.5]} 19. Qd3 {[%clk 0:01:38.1]} 19...
a5 {[%clk 0:02:16.6]} 20. Ng1 {[%clk 0:01:34.1]} 20... a4 {[%clk 0:02:12.7]} 21.
Ngf3 {[%clk 0:01:34.3]} 21... Rg8 {[%clk 0:02:11.9]} 22. Rg1 {[%clk 0:01:27.4]}
22... Rac8 {[%clk 0:01:20.1]} 23. g4 {[%clk 0:00:45.8]} 23... a3 {[%clk
0:01:17.1]} 24. g5 {[%clk 0:00:39.8]} 24... axb2 {[%clk 0:01:11.6]} 25. f5
{[%clk 0:00:32.5]} 25... Rc3 {[%clk 0:01:06.8]} 26. Qe2 {[%clk 0:00:28.3]} 26...
e5 {[%clk 0:00:55]} 27. Nb3 {[%clk 0:00:27]} 27... Qe3 {[%clk 0:00:42.3]} 28.
Qb5 {[%clk 0:00:16.3]} 28... Bxe4 {[%clk 0:00:38.7]} 29. Rgf1 {[%clk 0:00:15]}
29... Bxc2+ {[%clk 0:00:38.4]} 30. Kxb2 {[%clk 0:00:14.8]} 30... Bxd1 {[%clk
0:00:38.2]} 31. Rxd1 {[%clk 0:00:15.3]} 31... Qxf3 {[%clk 0:00:34.3]} 32. Rd2
{[%clk 0:00:13.8]} 32... Qxf5 {[%clk 0:00:31.2]} 33. Qxb4 {[%clk 0:00:14.8]}
33... Rf3 {[%clk 0:00:31.2]} 34. Qb7 {[%clk 0:00:15.3]} 34... Bf8 {[%clk
0:00:17]} 35. Qc6 {[%clk 0:00:15.4]} 35... Rf2 {[%clk 0:00:17.3]} 36. Rxf2
{[%clk 0:00:14.1]} 36... Qxf2+ {[%clk 0:00:19.2]} 37. Ka3 {[%clk 0:00:15.5]}
37... Qa7+ {[%clk 0:00:19.6]} 38. Kb2 {[%clk 0:00:15.2]} 38... Qe7 {[%clk
0:00:19.9]} 39. Qg2 {[%clk 0:00:15.2]} 39... fxg5 {[%clk 0:00:20.4]} 40. hxg5
{[%clk 0:00:16]} 40... Qxg5 {[%clk 0:00:21.6]} 41. Qd5 {[%clk 0:00:16.8]} 41...
Qg2+ {[%clk 0:00:22.4]} 42. Ka3 {[%clk 0:00:17.5]} 42... Qxd5 {[%clk 0:00:22.4]}
0-1

[Event "*** MasterClass Titled Tuesday Blitz"]
[Site "Chess.com"]
[Date "2017.12.05"]
[Round "2"]
[White "platy3"]
[Black "Bryakin_Mikhail"]
[Result "1-0"]
[WhiteElo "2522"]
[BlackElo "2564"]
[TimeControl "180+2"]
[EndTime "14:36:46 PST"]
[Termination "platy3 won by checkmate"]

1. e4 {[%clk 0:03:00.8]} 1... c6 {[%clk 0:03:00.3]} 2. d4 {[%clk 0:03:01]} 2...
d5 {[%clk 0:03:02.2]} 3. Nc3 {[%clk 0:03:02.2]} 3... dxe4 {[%clk 0:03:02.7]} 4.
Nxe4 {[%clk 0:03:04.1]} 4... Nf6 {[%clk 0:03:04.3]} 5. Nxf6+ {[%clk 0:03:04.9]}
5... gxf6 {[%clk 0:03:06.2]} 6. c3 {[%clk 0:03:04.5]} 6... Bf5 {[%clk
0:03:06.9]} 7. Nf3 {[%clk 0:03:03.6]} 7... Nd7 {[%clk 0:03:07.8]} 8. Qb3 {[%clk
0:03:02.6]} 8... Qb6 {[%clk 0:03:07.7]} 9. Bc4 {[%clk 0:02:59.6]} 9... e6 {[%clk
0:03:07.8]} 10. O-O {[%clk 0:02:59.8]} 10... Bd6 {[%clk 0:03:07]} 11. Re1 {[%clk
0:02:55]} 11... O-O-O {[%clk 0:03:07]} 12. Qxb6 {[%clk 0:02:53.9]} 12... axb6
{[%clk 0:03:06.4]} 13. a4 {[%clk 0:02:50.3]} 13... Kc7 {[%clk 0:03:05.7]} 14.
Bf1 {[%clk 0:02:46.5]} 14... Rhg8 {[%clk 0:03:03]} 15. g3 {[%clk 0:02:46.3]}
15... Ra8 {[%clk 0:02:57.6]} 16. b3 {[%clk 0:02:13.9]} 16... Bc2 {[%clk
0:02:19]} 17. Nd2 {[%clk 0:02:09.9]} 17... Ra7 {[%clk 0:02:03.4]} 18. Ra2 {[%clk
0:02:09.9]} 18... Bg6 {[%clk 0:02:03.2]} 19. Nc4 {[%clk 0:02:10.5]} 19... Rga8
{[%clk 0:01:57.8]} 20. Nxd6 {[%clk 0:02:09.7]} 20... Kxd6 {[%clk 0:01:59.7]} 21.
Bf4+ {[%clk 0:02:10.1]} 21... Ke7 {[%clk 0:02:00.2]} 22. Rd2 {[%clk 0:02:09.2]}
22... Rc8 {[%clk 0:01:44.3]} 23. c4 {[%clk 0:02:02.1]} 23... Ra5 {[%clk
0:01:35.9]} 24. d5 {[%clk 0:01:59.1]} 24... e5 {[%clk 0:01:31.7]} 25. d6+ {[%clk
0:01:57.7]} 25... Ke6 {[%clk 0:01:30.2]} 26. Be3 {[%clk 0:01:57.5]} 26... Raa8
{[%clk 0:01:25.1]} 27. f4 {[%clk 0:01:53.6]} 27... Nc5 {[%clk 0:01:20.1]} 28. g4
{[%clk 0:01:32.6]} 28... Nxb3 {[%clk 0:00:19.5]} 29. f5+ {[%clk 0:01:32.4]}
29... Kd7 {[%clk 0:00:21]} 30. Rb2 {[%clk 0:01:26.9]} 30... Nd4 {[%clk
0:00:19.4]} 31. Bxd4 {[%clk 0:01:25.6]} 31... exd4 {[%clk 0:00:21.3]} 32. fxg6
{[%clk 0:01:25.7]} 32... hxg6 {[%clk 0:00:21.3]} 33. Rxb6 {[%clk 0:01:15.8]}
33... Kxd6 {[%clk 0:00:22.6]} 34. Rxb7 {[%clk 0:01:16.7]} 34... Rf8 {[%clk
0:00:23]} 35. c5+ {[%clk 0:00:54.5]} 35... Kxc5 {[%clk 0:00:23.4]} 36. Rc1+
{[%clk 0:00:55.7]} 36... Kd6 {[%clk 0:00:24.7]} 37. Bg2 {[%clk 0:00:56.7]} 37...
Rxa4 {[%clk 0:00:24.7]} 38. Rxc6+ {[%clk 0:00:54.5]} 38... Ke5 {[%clk 0:00:26]}
39. Rb5+ {[%clk 0:00:43.6]} 39... Kf4 {[%clk 0:00:27]} 40. Rxf6+ {[%clk
0:00:44.4]} 40... Kxg4 {[%clk 0:00:17]} 41. h3+ {[%clk 0:00:44.8]} 41... Kg3
{[%clk 0:00:10.5]} 42. Rf3+ {[%clk 0:00:45.1]} 42... Kh4 {[%clk 0:00:12]} 43.
Rf4+ {[%clk 0:00:46.3]} 43... Kg3 {[%clk 0:00:13.6]} 44. Rg4# {[%clk 0:00:47.7]}
1-0

[Event "*** MasterClass Titled Tuesday Blitz"]
[Site "Chess.com"]
[Date "2017.12.05"]
[Round "2"]
[White "likantrophuss"]
[Black "sergiochess83"]
[Result "0-1"]
[WhiteElo "2460"]
[BlackElo "2760"]
[TimeControl "180+2"]
[EndTime "14:36:53 PST"]
[Termination "sergiochess83 won by resignation"]

1. Nf3 {[%clk 0:01:46.8]} 1... Nf6 {[%clk 0:02:58.3]} 2. c4 {[%clk 0:01:47.4]}
2... b6 {[%clk 0:02:56.2]} 3. g3 {[%clk 0:01:48.2]} 3... c5 {[%clk 0:02:55.9]}
4. Bg2 {[%clk 0:01:49.7]} 4... Bb7 {[%clk 0:02:57.4]} 5. O-O {[%clk 0:01:50.7]}
5... g6 {[%clk 0:02:58.5]} 6. b3 {[%clk 0:01:51.3]} 6... Bg7 {[%clk 0:02:59.3]}
7. Bb2 {[%clk 0:01:52.8]} 7... O-O {[%clk 0:03:00.5]} 8. d4 {[%clk 0:01:53.1]}
8... cxd4 {[%clk 0:02:58.2]} 9. Nxd4 {[%clk 0:01:54]} 9... Bxg2 {[%clk 0:02:59]}
10. Kxg2 {[%clk 0:01:54.2]} 10... Qc8 {[%clk 0:02:56.3]} 11. Nf3 {[%clk
0:01:53.1]} 11... a6 {[%clk 0:02:56.3]} 12. Nbd2 {[%clk 0:01:53.5]} 12... Qb7
{[%clk 0:02:57]} 13. Rc1 {[%clk 0:01:54.3]} 13... d6 {[%clk 0:02:57.7]} 14. Rc2
{[%clk 0:01:54.6]} 14... Nbd7 {[%clk 0:02:58.8]} 15. Qa1 {[%clk 0:01:55.5]}
15... Rfc8 {[%clk 0:02:56.3]} 16. Rfc1 {[%clk 0:01:56.3]} 16... Rc7 {[%clk
0:02:56.7]} 17. Kg1 {[%clk 0:01:55.6]} 17... Rac8 {[%clk 0:02:57.6]} 18. Nf1
{[%clk 0:01:55.3]} 18... b5 {[%clk 0:02:56.4]} 19. N1d2 {[%clk 0:01:30.5]} 19...
Bh6 {[%clk 0:02:52.9]} 20. e3 {[%clk 0:01:28.8]} 20... bxc4 {[%clk 0:02:51.2]}
21. Rxc4 {[%clk 0:01:28.6]} 21... Rxc4 {[%clk 0:02:52.1]} 22. Rxc4 {[%clk
0:01:29.4]} 22... Rxc4 {[%clk 0:02:53.1]} 23. bxc4 {[%clk 0:01:30.6]} 23... Bg7
{[%clk 0:02:51.2]} 24. Bd4 {[%clk 0:01:29.7]} 24... Qc6 {[%clk 0:02:47.2]} 25.
Qb2 {[%clk 0:01:22.8]} 25... h5 {[%clk 0:02:45.6]} 26. h3 {[%clk 0:01:20.8]}
26... e5 {[%clk 0:02:38.4]} 27. Bc3 {[%clk 0:01:20.5]} 27... Nc5 {[%clk
0:02:39.5]} 28. Qb8+ {[%clk 0:01:14.6]} 28... Bf8 {[%clk 0:02:34.6]} 29. Bb4
{[%clk 0:01:01.9]} 29... Nd3 {[%clk 0:02:32.6]} 30. Ng5 {[%clk 0:00:46.6]} 30...
Kg7 {[%clk 0:02:07.3]} 31. a3 {[%clk 0:00:47]} 31... Be7 {[%clk 0:02:00]} 32.
Qa7 {[%clk 0:00:47.3]} 32... Nd7 {[%clk 0:01:54.9]} 33. Nge4 {[%clk 0:00:42.4]}
33... Bf8 {[%clk 0:01:14.9]} 34. Nc3 {[%clk 0:00:31.4]} 34... Nf6 {[%clk
0:01:11.7]} 35. Qb8 {[%clk 0:00:23.4]} 35... Qd7 {[%clk 0:01:05.6]} 36. Kg2
{[%clk 0:00:22.3]} 36... Qf5 {[%clk 0:01:03.7]} 37. f3 {[%clk 0:00:16.1]} 37...
Ne1+ {[%clk 0:00:58]} 38. Kf2 {[%clk 0:00:15.7]} 38... Nxf3 {[%clk 0:00:55.9]}
39. Nxf3 {[%clk 0:00:17.2]} 39... e4 {[%clk 0:00:57.2]} 40. Nxe4 {[%clk
0:00:17]} 40... Nxe4+ {[%clk 0:00:59.1]} 41. Ke2 {[%clk 0:00:17.9]} 41... Nxg3+
{[%clk 0:00:59.8]} 42. Kf2 {[%clk 0:00:19.4]} 42... Ne4+ {[%clk 0:01:00.8]} 43.
Ke2 {[%clk 0:00:20.9]} 43... Qxh3 {[%clk 0:01:00.4]} 44. Nd4 {[%clk 0:00:21]}
44... Ng3+ {[%clk 0:00:53.5]} 45. Kd3 {[%clk 0:00:21.4]} 45... Nf5 {[%clk
0:00:54.6]} 46. Nc2 {[%clk 0:00:17.3]} 46... Qf1+ {[%clk 0:00:54.8]} 47. Kc3
{[%clk 0:00:15.8]} 47... Be7 {[%clk 0:00:56.1]} 48. Kb3 {[%clk 0:00:16.1]} 48...
Qb1+ {[%clk 0:00:56.3]} 49. Ka4 {[%clk 0:00:16.5]} 49... Qxc2+ {[%clk
0:00:56.8]} 50. Ka5 {[%clk 0:00:17.6]} 50... Qxc4 {[%clk 0:00:57.7]} 0-1